bitfinex/quotes_BTCUSD_20241111
["timestamp","ask_amount","ask_price","bid_price","bid_amount"]
[1731298772170,0.001688,81537.0,81536.0,0.3084227]
[1731298772605,0.001688,81537.0,81536.0,0.3184227]
[1731298772987,0.001688,81537.0,81536.0,0.3204227]
[1731298774418,0.001688,81537.0,81536.0,0.3184227]
[1731298776018,0.001688,81537.0,81536.0,0.03786449]
[1731298779196,0.001688,81537.0,81536.0,0.13598049]
[1731298783187,0.001688,81537.0,81536.0,0.22683847]
[1731298784477,0.001688,81537.0,81536.0,0.56331512]
[1731298784763,0.001688,81537.0,81536.0,0.67189219]
[1731298784977,0.001688,81537.0,81536.0,0.56286261]
[1731298785601,0.001688,81537.0,81536.0,0.6698077]
[1731298785809,0.001688,81537.0,81536.0,0.53136779]
[1731298786231,0.001688,81537.0,81536.0,0.53136582]
[1731298786712,0.001688,81537.0,81536.0,0.50836582]
[1731298786881,0.001688,81537.0,81536.0,0.45606582]
[1731298787081,0.001688,81537.0,81536.0,0.2669227]
[1731298787836,0.001688,81537.0,81536.0,0.2619227]
[1731298790067,0.001688,81537.0,81536.0,0.2669227]
[1731298790268,0.001688,81537.0,81536.0,0.2619227]
[1731298791355,0.001688,81537.0,81536.0,0.2669227]
[1731298791944,0.001688,81537.0,81536.0,0.2619227]
[1731298792998,0.001688,81537.0,81536.0,0.2669227]
[1731298798227,0.05908714,81548.0,81535.0,0.03]
[1731298798425,0.05908714,81548.0,81536.0,0.03631356]
[1731298799024,0.05908714,81548.0,81535.0,0.03]
[1731298799025,0.1322,81543.0,81535.0,0.03]
[1731298799203,0.196217,81542.0,81535.0,0.03]
[1731298799630,0.1322,81543.0,81535.0,0.03]
[1731298799631,0.19622,81541.0,81535.0,0.03]
[1731298799948,0.098112,81539.0,81535.0,0.03]
[1731298800404,0.001686,81537.0,81535.0,0.03]
[1731298804284,0.28172914,81536.0,81535.0,0.03]
[1731298804398,0.09812,81532.0,81530.0,0.03631356]
[1731298804616,0.0769,81531.0,81530.0,0.03631356]
[1731298804809,0.0769,81531.0,81526.0,0.05451939]
[1731298805147,0.0769,81531.0,81530.0,0.03634626]
[1731298807443,0.08,81536.0,81530.0,0.03634626]
[1731298807894,0.178116,81536.0,81530.0,0.03634626]
[1731298808099,0.098117,81535.0,81530.0,0.03634626]
[1731298808330,0.098119,81533.0,81532.0,0.03634626]
[1731298808541,0.0487,81534.0,81532.0,0.03634626]
[1731298808994,0.01216643,81537.0,81536.0,0.237816]
[1731298808995,0.001686,81537.0,81536.0,0.237816]
[1731298809198,0.001686,81537.0,81536.0,0.54007153]
[1731298809317,0.001686,81537.0,81536.0,0.68990022]
[1731298809517,0.001686,81537.0,81536.0,0.71290022]
[1731298809896,0.001686,81537.0,81536.0,0.60386143]
[1731298810094,0.001686,81537.0,81536.0,0.60308605]
[1731298810332,0.001686,81537.0,81536.0,0.56507153]
[1731298810724,0.001686,81537.0,81536.0,0.67407632]
[1731298813083,0.001686,81537.0,81536.0,0.53563641]
[1731298815324,0.001686,81537.0,81536.0,0.42663162]
[1731298815710,0.001686,81537.0,81536.0,0.42463162]
[1731298816101,0.001686,81537.0,81536.0,0.42663162]
[1731298816314,0.001686,81537.0,81536.0,0.16881562]
[1731298818112,0.001686,81537.0,81536.0,0.16381562]
[1731298818875,0.001686,81537.0,81536.0,0.16881562]
[1731298819103,0.001686,81537.0,81536.0,0.16381562]
[1731298819316,0.001686,81537.0,81536.0,0.03787341]
[1731298819741,0.001686,81537.0,81536.0,0.11055936]
[1731298820553,0.001686,81537.0,81536.0,0.03787341]
[1731298820768,0.001686,81537.0,81536.0,0.11056147]
[1731298820991,0.0998,81537.0,81536.0,0.11056147]
[1731298821195,0.196234,81536.0,81534.0,0.07268806]
[1731298821353,0.196234,81536.0,81532.0,0.09169245]
[1731298821354,0.098118,81534.0,81533.0,0.07268806]
[1731298821519,0.098118,81534.0,81533.0,0.03784498]
[1731298821725,0.175918,81534.0,81533.0,0.03784498]
[1731298823325,0.099801,81537.0,81533.0,0.03784498]
[1731298823541,0.001686,81537.0,81535.0,0.05450738]
[1731298824025,0.098116,81536.0,81535.0,0.05451461]
[1731298824227,0.098116,81536.0,81535.0,0.09236447]
[1731298824926,0.098116,81536.0,81532.0,0.07352915]
[1731298824927,0.098119,81533.0,81532.0,0.000843]
[1731298825620,0.28315891,81533.0,81532.0,0.000843]
[1731298825988,0.144719,81533.0,81532.0,0.000843]
[1731298827178,0.225319,81533.0,81532.0,0.000843]
[1731298830856,0.35626121,81533.0,81532.0,0.000843]
[1731298832437,0.35826121,81533.0,81532.0,0.000843]
[1731298832955,0.35626121,81533.0,81532.0,0.000843]
[1731298834016,0.35826121,81533.0,81532.0,0.000843]
[1731298834244,0.35626121,81533.0,81532.0,0.000843]
[1731298835542,0.225319,81533.0,81532.0,0.000843]
[1731298835744,0.098119,81533.0,81532.0,0.000843]
[1731298844069,0.176519,81533.0,81532.0,0.000843]
[1731298844491,0.46703809,81533.0,81532.0,0.000843]
[1731298844692,0.35656121,81533.0,81532.0,0.000843]
[1731298844846,0.35456121,81533.0,81532.0,0.000843]
[1731298847496,0.223619,81533.0,81532.0,0.000843]
[1731298848310,0.34956121,81533.0,81532.0,0.000843]
[1731298863925,0.35456121,81533.0,81532.0,0.000843]
[1731298864334,0.35656121,81533.0,81532.0,0.000843]
[1731298864881,0.35456121,81533.0,81532.0,0.000843]
[1731298865348,0.60717842,81533.0,81532.0,0.000843]
[1731298865553,0.60917842,81533.0,81532.0,0.000843]
[1731298865717,0.37126991,81524.0,81523.0,0.000843]
[1731298865940,0.50638942,81524.0,81523.0,0.000843]
[1731298867441,0.50838942,81524.0,81523.0,0.000843]
[1731298868963,0.50638942,81524.0,81523.0,0.000843]
[1731298870305,0.36751212,81524.0,81523.0,0.000843]
[1731298870705,0.37345412,81524.0,81523.0,0.000843]
[1731298871109,0.109072,81524.0,81523.0,0.000843]
[1731298871531,0.09813,81524.0,81523.0,0.000843]
[1731298871747,0.09813,81524.0,81523.0,0.050343]
[1731298873213,0.196249,81529.0,81523.0,0.050343]
[1731298873369,0.049386,81548.0,81523.0,0.050343]
[1731298873370,0.01081652,81533.0,81524.0,0.075]
[1731298873568,0.13843991,81538.0,81524.0,0.075]
[1731298873569,0.196235,81535.0,81524.0,0.075]
[1731298873773,0.13843991,81538.0,81524.0,0.075]
[1731298874005,0.09812,81533.0,81524.0,0.075]
[1731298874199,0.196232,81536.0,81524.0,0.075]
[1731298874643,0.13843991,81530.0,81524.0,0.075]
[1731298874773,0.098129,81525.0,81524.0,0.075]
[1731298875177,0.196239,81533.0,81524.0,0.075]
[1731298875394,0.26438212,81536.0,81524.0,0.075]
[1731298875606,0.18361314,81534.0,81524.0,0.075]
[1731298875780,0.001686,81537.0,81526.0,0.18361314]
[1731298875999,0.001686,81537.0,81527.0,0.225926]
[1731298876201,0.001686,81537.0,81527.0,0.1278]
[1731298876202,0.09812,81533.0,81527.0,0.1278]
[1731298876419,0.13843991,81536.0,81527.0,0.1278]
[1731298876636,0.098121,81532.0,81527.0,0.1278]
[1731298876846,0.098117,81535.0,81527.0,0.1278]
[1731298877228,0.13843991,81536.0,81527.0,0.1278]
[1731298877558,0.33467291,81536.0,81527.0,0.1278]
[1731298877684,0.098118,81534.0,81527.0,0.1278]
[1731298879205,0.33467291,81536.0,81527.0,0.1278]
[1731298879442,0.18361314,81531.0,81527.0,0.1278]
[1731298879611,0.001686,81537.0,81523.0,0.000843]
[1731298879612,0.09813,81524.0,81523.0,0.000843]
[1731298879811,0.23656991,81524.0,81523.0,0.000843]
[1731298880191,0.196241,81533.0,81523.0,0.000843]
[1731298880406,0.23656991,81524.0,81523.0,0.000843]
[1731298881250,0.09813,81524.0,81523.0,0.000843]
[1731298882095,0.33621806,81524.0,81523.0,0.000843]
[1731298882610,0.46311806,81524.0,81523.0,0.000843]
[1731298882822,0.36674208,81524.0,81523.0,0.000843]
[1731298884833,0.36874208,81524.0,81523.0,0.000843]
[1731298884976,0.36674208,81524.0,81523.0,0.000843]
[1731298886429,0.36874208,81524.0,81523.0,0.000843]
[1731298887705,0.36674208,81524.0,81523.0,0.000843]
[1731298888470,0.005,81517.0,81516.0,0.000843]
[1731298888652,0.37503282,81505.0,81504.0,0.001388]
[1731298888848,0.50097503,81505.0,81504.0,0.001388]
[1731298889681,0.098175,81487.0,81486.0,0.0809]
[1731298890765,0.23661491,81487.0,81486.0,0.0809]
[1731298893302,0.23661491,81487.0,81486.0,0.081743]
[1731298894765,0.23661491,81487.0,81486.0,0.076743]
[1731298895348,0.23661491,81487.0,81486.0,0.000843]
[1731298896870,0.36255712,81487.0,81486.0,0.000843]
[1731298898305,0.50099703,81487.0,81486.0,0.000843]
[1731298898685,0.36255712,81487.0,81486.0,0.000843]
[1731298901443,0.22411721,81487.0,81486.0,0.000843]
[1731298902199,0.36255712,81487.0,81486.0,0.000843]
[1731298903921,0.36755712,81487.0,81486.0,0.000843]
[1731298904129,0.36255712,81487.0,81486.0,0.000843]
[1731298905124,0.36755712,81487.0,81486.0,0.000843]
[1731298911136,0.35640712,81487.0,81486.0,0.000843]
[1731298914430,0.48090712,81487.0,81486.0,0.000843]
[1731298915289,0.35640712,81487.0,81486.0,0.000843]
[1731298917191,0.35809512,81487.0,81486.0,0.000843]
[1731298917370,0.36726747,81487.0,81486.0,0.000843]
[1731298918333,0.36726745,81487.0,81486.0,0.000843]
[1731298918737,0.23662791,81476.0,81475.0,0.001388]
[1731298918969,0.36757012,81476.0,81475.0,0.001388]
[1731298919084,0.50555147,81476.0,81475.0,0.001388]
[1731298920633,0.56565147,81476.0,81475.0,0.001388]
[1731298923994,0.57637975,81476.0,81475.0,0.001388]
[1731298924397,0.68713319,81476.0,81475.0,0.001388]
[1731298924636,0.68713319,81476.0,81460.0,0.001388]
[1731298924637,0.005,81464.0,81460.0,0.001388]
[1731298924976,0.36758412,81464.0,81460.0,0.001388]
[1731298927271,0.36258412,81464.0,81460.0,0.001388]
[1731298929497,0.36258412,81464.0,81463.0,0.000924]
[1731298930336,0.37310905,81464.0,81463.0,0.000924]
[1731298937077,0.32575599,81464.0,81463.0,0.000924]
[1731298941906,0.33075599,81464.0,81463.0,0.000924]
[1731298942154,0.41095599,81464.0,81463.0,0.000924]
[1731298947551,0.51147099,81464.0,81463.0,0.000924]
[1731298947749,0.41095599,81464.0,81463.0,0.000924]
[1731298948680,0.42014783,81464.0,81463.0,0.000924]
[1731298949230,0.51123468,81464.0,81463.0,0.000924]
[1731298950329,0.42014783,81464.0,81463.0,0.000924]
[1731298950457,0.51123468,81464.0,81463.0,0.000924]
[1731298951158,0.42014783,81464.0,81463.0,0.000924]
[1731298952466,0.51623468,81464.0,81463.0,0.000924]
[1731298952663,0.51623468,81464.0,81453.0,0.0014882]
[1731298952664,0.19430085,81454.0,81453.0,0.0014882]
[1731298952892,0.23834805,81454.0,81453.0,0.0014882]
[1731298955715,0.22915621,81454.0,81453.0,0.0014882]
[1731298955955,0.23834517,81454.0,81453.0,0.0014882]
[1731298957054,0.37721082,81454.0,81453.0,0.0014882]
[1731298957954,0.23834517,81454.0,81453.0,0.0014882]
[1731298959348,0.23833647,81454.0,81453.0,0.0014882]
[1731298959548,0.24919246,81454.0,81453.0,0.0014882]
[1731298961390,0.41819808,81454.0,81453.0,0.0014882]
[1731298961587,0.33739246,81454.0,81453.0,0.0014882]
[1731298963054,0.33738893,81454.0,81453.0,0.0014882]
[1731298963421,0.47625458,81454.0,81453.0,0.0014882]
[1731298966681,0.47625128,81454.0,81453.0,0.0014882]
[1731298967030,0.33738563,81454.0,81453.0,0.0014882]
[1731298967229,0.47625128,81454.0,81453.0,0.0014882]
[1731298969463,0.39305128,81454.0,81453.0,0.0014882]
[1731298973769,0.24918677,81454.0,81453.0,0.0014882]
[1731298973998,0.2350122,81454.0,81453.0,0.0014882]
[1731298985470,0.23467563,81454.0,81453.0,0.0014882]
[1731298990550,0.23967563,81454.0,81453.0,0.0014882]
[1731298990963,0.2488627,81454.0,81453.0,0.0014882]
[1731298991369,0.2438627,81454.0,81453.0,0.0014882]
[1731298991578,0.33497956,81454.0,81453.0,0.0014882]
[1731298993103,0.2438627,81454.0,81453.0,0.0014882]
[1731298994385,0.2488627,81454.0,81453.0,0.0014882]
[1731298994599,0.3284627,81454.0,81453.0,0.0014882]
[1731298994942,0.182824,81446.0,81445.0,0.001388]
[1731298995152,0.40907014,81446.0,81445.0,0.001388]
[1731298995485,0.551987,81446.0,81445.0,0.001388]
[1731298998205,0.54279993,81446.0,81445.0,0.001388]
[1731298998370,0.55198549,81446.0,81445.0,0.001388]
[1731298998576,0.46086863,81446.0,81445.0,0.001388]
[1731298998773,0.23335177,81446.0,81445.0,0.001388]
[1731298999322,0.22416621,81446.0,81445.0,0.001388]
[1731299004528,0.098224,81446.0,81445.0,0.001388]
[1731299008041,0.23707356,81446.0,81445.0,0.001388]
[1731299008440,0.098224,81446.0,81445.0,0.001388]
[1731299009446,0.01085599,81454.0,81445.0,0.001388]
[1731299009640,0.196436,81452.0,81445.0,0.001388]
[1731299009802,0.196437,81451.0,81445.0,0.001388]
[1731299009984,0.098224,81446.0,81445.0,0.001388]
[1731299010505,0.19812,81452.0,81445.0,0.001388]
[1731299010506,0.098222,81448.0,81445.0,0.001388]
[1731299011072,0.196437,81451.0,81445.0,0.001388]
[1731299011271,0.001686,81452.0,81445.0,0.001388]
[1731299011272,0.098223,81447.0,81445.0,0.001388]
[1731299012012,0.196439,81450.0,81445.0,0.001388]
[1731299012220,0.098221,81449.0,81445.0,0.001388]
[1731299012641,0.196439,81450.0,81445.0,0.001388]
[1731299012841,0.098222,81448.0,81445.0,0.001388]
[1731299013206,0.196439,81450.0,81445.0,0.001388]
[1731299013639,0.098224,81447.0,81445.0,0.001388]
[1731299014296,0.098224,81446.0,81445.0,0.001388]
[1731299015140,0.196441,81449.0,81445.0,0.001388]
[1731299015395,0.01221562,81452.0,81445.0,0.001388]
[1731299015537,0.294655,81451.0,81445.0,0.001388]
[1731299015739,0.098223,81447.0,81445.0,0.001388]
[1731299016153,0.098224,81446.0,81445.0,0.001388]
[1731299017633,0.22416621,81446.0,81445.0,0.001388]
[1731299019007,0.2205374,81446.0,81445.0,0.001388]
[1731299020939,0.31167574,81446.0,81445.0,0.001388]
[1731299022530,0.40281408,81446.0,81445.0,0.001388]
[1731299022963,0.4120025,81446.0,81445.0,0.001388]
[1731299024028,0.22972582,81446.0,81445.0,0.001388]
[1731299024227,0.32086416,81446.0,81445.0,0.001388]
[1731299024479,0.32086478,81446.0,81445.0,0.001388]
[1731299030585,0.44876478,81446.0,81445.0,0.001388]
[1731299030770,0.44876478,81446.0,81445.0,8.283e-05]
[1731299031172,0.22972644,81446.0,81445.0,8.283e-05]
[1731299031534,0.10378423,81446.0,81445.0,8.283e-05]
[1731299031803,0.09459519,81446.0,81445.0,8.283e-05]
[1731299033408,0.09628119,81446.0,81445.0,8.283e-05]
[1731299042634,0.31336174,81446.0,81445.0,8.283e-05]
[1731299042746,0.2222234,81446.0,81445.0,8.283e-05]
[1731299043815,0.31836174,81446.0,81445.0,8.283e-05]
[1731299044127,0.3707498,81446.0,81445.0,8.283e-05]
[1731299045119,0.3757498,81446.0,81445.0,8.283e-05]
[1731299049029,0.4531498,81446.0,81445.0,8.283e-05]
[1731299050300,0.4581498,81446.0,81445.0,8.283e-05]
[1731299050523,0.5581498,81446.0,81445.0,8.283e-05]
[1731299050728,0.196485,81431.0,81427.0,0.18361314]
[1731299050929,0.28052268,81428.0,81427.0,0.18361314]
[1731299051149,0.098257,81419.0,81418.0,0.03658768]
[1731299051349,0.18939534,81419.0,81418.0,0.03658768]
[1731299052941,0.098263,81414.0,81413.0,0.129]
[1731299053121,0.18940134,81414.0,81413.0,0.129]
[1731299053894,0.098263,81414.0,81413.0,0.129]
[1731299054098,0.09113834,81414.0,81404.0,0.12649]
[1731299054223,0.098274,81405.0,81404.0,0.05019]
[1731299054433,0.098274,81405.0,81404.0,0.00139]
[1731299054638,0.09113834,81415.0,81404.0,0.00139]
[1731299054840,0.098272,81406.0,81405.0,0.1251]
[1731299055123,0.098272,81407.0,81405.0,0.1251]
[1731299055278,0.196526,81414.0,81405.0,0.1251]
[1731299055480,0.098272,81406.0,81405.0,0.1251]
[1731299057723,0.098271,81407.0,81405.0,0.1251]
[1731299057971,0.196531,81412.0,81405.0,0.1251]
[1731299058221,0.40069369,81415.0,81405.0,0.1251]
[1731299058590,0.098269,81409.0,81405.0,0.1251]
[1731299058980,0.098271,81407.0,81405.0,0.1251]
[1731299059158,0.098272,81406.0,81405.0,0.1251]
[1731299063595,0.19654,81409.0,81404.0,0.00139]
[1731299063596,0.098274,81405.0,81404.0,0.00139]
[1731299068230,0.22421621,81405.0,81404.0,0.00139]
[1731299069440,0.098274,81405.0,81404.0,0.00139]
[1731299071369,0.20703016,81409.0,81404.0,0.00139]
[1731299071570,0.196545,81407.0,81404.0,0.00139]
[1731299071782,0.098274,81405.0,81404.0,0.00139]
[1731299072926,0.22421621,81405.0,81404.0,0.00139]
[1731299073515,0.22421621,81405.0,81404.0,0.0109533]
[1731299076487,0.098274,81405.0,81404.0,0.0109533]
[1731299087886,0.09120183,81405.0,81404.0,0.0109533]
[1731299088707,0.29847655,81411.0,81405.0,0.1246]
[1731299088708,0.01080421,81411.0,81405.0,0.1246]
[1731299088915,0.00919559,81410.0,81405.0,0.1246]
[1731299089250,0.18361314,81421.0,81407.0,0.0464]
[1731299089539,0.18361314,81412.0,81408.0,0.0785]
[1731299089749,0.18361314,81420.0,81409.0,0.098268]
[1731299089956,0.18361314,81420.0,81410.0,0.0481]
[1731299090167,0.00919327,81419.0,81410.0,0.0481]
[1731299090379,0.098261,81416.0,81410.0,0.0481]
[1731299091329,0.28186914,81420.0,81410.0,0.0481]
[1731299091532,0.18361314,81420.0,81410.0,0.0481]
[1731299091723,0.28186914,81420.0,81410.0,0.0481]
[1731299092082,0.098254,81422.0,81413.0,0.0785]
[1731299092296,0.18361314,81420.0,81413.0,0.0785]
[1731299092502,0.098254,81421.0,81413.0,0.0785]
[1731299093008,0.196499,81425.0,81413.0,0.0785]
[1731299093179,0.098255,81421.0,81413.0,0.0785]
[1731299093382,0.098253,81423.0,81413.0,0.0785]
[1731299093587,0.098251,81424.0,81413.0,0.0785]
[1731299093918,0.196475,81436.0,81415.0,0.0785]
[1731299094207,0.098245,81429.0,81420.0,0.0785]
[1731299094462,0.0108258,81432.0,81423.0,0.0785]
[1731299094640,0.18361314,81439.0,81427.0,0.0785]
[1731299094839,0.001686,81441.0,81424.0,0.0481]
[1731299094840,0.001686,81441.0,81428.0,0.0481]
[1731299095147,0.001686,81441.0,81437.0,0.098234]
[1731299095353,0.001686,81441.0,81436.0,0.224836]
[1731299095579,0.001686,81441.0,81436.0,0.40135148]
[1731299095695,0.001686,81441.0,81438.0,0.196467]
[1731299095901,0.001686,81441.0,81439.0,0.00245552]
[1731299096115,0.001686,81441.0,81440.0,0.098231]
[1731299096344,0.001686,81441.0,81440.0,0.100231]
[1731299096550,0.001686,81441.0,81440.0,0.178631]
[1731299097086,0.18529914,81452.0,81445.0,0.180525]
[1731299097292,0.001686,81452.0,81445.0,0.2328804]
[1731299097722,0.001686,81452.0,81447.0,0.110223]
[1731299097917,0.001686,81452.0,81447.0,0.37082019]
[1731299098133,0.001686,81452.0,81447.0,0.36836521]
[1731299098360,0.001686,81452.0,81451.0,0.110218]
[1731299098568,0.001686,81452.0,81451.0,0.5071501]
[1731299099180,0.001686,81452.0,81451.0,0.36836021]
[1731299099611,0.001686,81452.0,81451.0,0.36636021]
[1731299099814,0.001686,81452.0,81451.0,0.1322]
[1731299100510,0.001686,81452.0,81442.0,0.0823]
[1731299101099,0.001686,81452.0,81442.0,0.09284427]
[1731299101100,0.098218,81451.0,81442.0,0.09284427]
[1731299101314,0.001686,81452.0,81442.0,0.09284427]
[1731299101517,0.098218,81451.0,81442.0,0.09284427]
[1731299101722,0.196437,81451.0,81442.0,0.09284427]
[1731299101845,0.001686,81452.0,81442.0,0.09284427]
[1731299102073,0.098223,81447.0,81442.0,0.09284427]
[1731299102461,0.33523089,81449.0,81439.0,0.0499]
[1731299102680,0.098225,81446.0,81439.0,0.0499]
[1731299102812,0.196444,81448.0,81436.0,0.18361314]
[1731299103012,0.196444,81448.0,81431.0,0.0158941]
[1731299103013,0.13878989,81437.0,81427.0,0.17615099]
[1731299103220,0.23702489,81437.0,81427.0,0.1916255]
[1731299103443,0.196458,81443.0,81427.0,0.2898715]
[1731299103648,0.196458,81443.0,81427.0,0.1916255]
[1731299103844,0.098228,81443.0,81430.0,0.098243]
[1731299104051,0.13878989,81444.0,81430.0,0.098243]
[1731299104052,0.09823,81442.0,81430.0,0.098243]
[1731299104632,0.098226,81445.0,81428.0,0.196492]
[1731299104834,0.098226,81445.0,81432.0,0.09824]
[1731299105051,0.005,81447.0,81437.0,0.098235]
[1731299105460,0.001686,81452.0,81441.0,0.002]
[1731299105668,0.001686,81452.0,81449.0,0.09822]
[1731299105837,0.001686,81452.0,81451.0,0.098218]
[1731299106238,0.001686,81452.0,81445.0,0.0466]
[1731299106478,0.001686,81452.0,81444.0,0.0793]
[1731299106677,0.001686,81452.0,81437.0,0.18361314]
[1731299106678,0.13878989,81449.0,81437.0,0.18361314]
[1731299106885,0.13878989,81438.0,81437.0,0.18361314]
[1731299107083,0.098232,81440.0,81437.0,0.18361314]
[1731299107302,0.09823,81441.0,81428.0,0.1259]
[1731299107510,0.09823,81441.0,81427.0,0.17699399]
[1731299107511,0.13878989,81431.0,81429.0,0.18361314]
[1731299107726,0.13878989,81431.0,81427.0,0.000843]
[1731299107727,0.098246,81428.0,81427.0,0.000843]
[1731299109818,0.005,81440.0,81428.0,0.0775]
[1731299110037,0.005,81456.0,81428.0,0.0775]
[1731299110038,0.18361314,81444.0,81431.0,0.294727]
[1731299110271,0.098228,81443.0,81432.0,0.00245569]
[1731299110468,0.005,81447.0,81430.0,0.0491]
[1731299110740,0.13878989,81444.0,81430.0,0.0491]
[1731299110946,0.13878989,81438.0,81427.0,0.000843]
[1731299111158,0.294705,81437.0,81430.0,0.18361314]
[1731299111322,0.19647,81437.0,81430.0,0.18361314]
[1731299111563,0.09824,81433.0,81430.0,0.18361314]
[1731299111726,0.098238,81435.0,81430.0,0.18361314]
[1731299111889,0.098238,81435.0,81427.0,0.000843]
[1731299112333,0.19647,81437.0,81427.0,0.000843]
[1731299112334,0.098239,81434.0,81427.0,0.000843]
[1731299112569,0.196473,81436.0,81427.0,0.000843]
[1731299112923,0.13878989,81438.0,81427.0,0.000843]
[1731299113243,0.09824,81433.0,81427.0,0.000843]
[1731299113444,0.13878989,81438.0,81427.0,0.000843]
[1731299113608,0.09824,81433.0,81427.0,0.000843]
[1731299114845,0.294705,81437.0,81427.0,0.000843]
[1731299115047,0.13878989,81438.0,81427.0,0.000843]
[1731299115251,0.098235,81437.0,81427.0,0.000843]
[1731299115481,0.098241,81432.0,81427.0,0.000843]
[1731299115754,0.098246,81428.0,81427.0,0.000843]
[1731299116464,0.13878989,81431.0,81427.0,0.000843]
[1731299116665,0.098246,81428.0,81427.0,0.000843]
[1731299117347,0.13878989,81431.0,81427.0,0.000843]
[1731299117547,0.196487,81430.0,81427.0,0.000843]
[1731299117840,0.098246,81428.0,81427.0,0.000843]
[1731299118388,0.23703289,81431.0,81427.0,0.000843]
[1731299118589,0.098246,81428.0,81427.0,0.000843]
[1731299118768,0.005,81433.0,81427.0,0.000843]
[1731299118906,0.098241,81432.0,81427.0,0.000843]
[1731299119308,0.098245,81429.0,81427.0,0.000843]
[1731299120818,0.098246,81428.0,81427.0,0.000843]
[1731299121051,0.23703589,81428.0,81427.0,0.000843]
[1731299121538,0.098246,81428.0,81427.0,0.000843]
[1731299125072,0.103246,81428.0,81427.0,0.000843]
[1731299126678,0.4482781,81428.0,81427.0,0.000843]
[1731299126881,0.30948821,81428.0,81427.0,0.000843]
[1731299129160,0.31448821,81428.0,81427.0,0.000843]
[1731299133542,0.22918821,81428.0,81427.0,0.000843]
[1731299134933,0.01082315,81433.0,81427.0,0.000843]
[1731299135265,0.103246,81428.0,81427.0,0.000843]
[1731299137032,0.098246,81428.0,81427.0,0.000843]
[1731299137919,0.103246,81428.0,81427.0,0.000843]
[1731299138139,0.098246,81428.0,81427.0,0.000843]
[1731299138364,0.103246,81428.0,81427.0,0.000843]
[1731299139206,0.005,81429.0,81427.0,0.000843]
[1731299139409,0.103246,81428.0,81427.0,0.000843]
[1731299142378,0.098246,81428.0,81427.0,0.000843]
[1731299142584,0.103246,81428.0,81427.0,0.000843]
[1731299143352,0.30688821,81428.0,81427.0,0.000843]
[1731299144303,0.103246,81428.0,81427.0,0.000843]
[1731299145820,0.098246,81428.0,81427.0,0.000843]
[1731299146054,0.103246,81428.0,81427.0,0.000843]
[1731299146805,0.22918821,81428.0,81427.0,0.000843]
[1731299147216,0.3679781,81428.0,81427.0,0.000843]
[1731299147828,0.22918821,81428.0,81427.0,0.000843]
[1731299149766,0.23087421,81428.0,81427.0,0.000843]
[1731299152698,0.31397421,81428.0,81427.0,0.000843]
[1731299158766,0.35067971,81428.0,81427.0,0.000843]
[1731299160281,0.35070455,81428.0,81427.0,0.000843]
[1731299161310,0.58164676,81428.0,81427.0,0.000843]
[1731299161460,0.51976972,81428.0,81427.0,0.000843]
[1731299161664,0.60028059,81428.0,81427.0,0.000843]
[1731299163770,0.73907048,81428.0,81427.0,0.000843]
[1731299165155,0.60028059,81428.0,81427.0,0.000843]
[1731299165323,0.54958059,81428.0,81427.0,0.000843]
[1731299165735,0.41397421,81428.0,81427.0,0.000843]
[1731299166125,0.54956632,81428.0,81427.0,0.000843]
[1731299166497,0.55456632,81428.0,81427.0,0.000843]
[1731299167118,0.55457128,81428.0,81427.0,0.000843]
[1731299167780,0.7636406,81428.0,81427.0,0.000843]
[1731299167977,0.7686406,81428.0,81427.0,0.000843]
[1731299168358,0.7636406,81428.0,81427.0,0.000843]
[1731299168551,0.7686406,81428.0,81427.0,0.000843]
[1731299169406,0.55957128,81428.0,81427.0,0.000843]
[1731299169621,0.76864943,81428.0,81427.0,0.000843]
[1731299170600,0.55958084,81428.0,81427.0,0.000843]
[1731299173601,0.63305448,81428.0,81427.0,0.000843]
[1731299174764,0.62805448,81428.0,81427.0,0.000843]
[1731299174922,0.63305448,81428.0,81427.0,0.000843]
[1731299176341,0.55958084,81428.0,81427.0,0.000843]
[1731299176983,0.55458084,81428.0,81427.0,0.000843]
[1731299177190,0.61455885,81428.0,81427.0,0.000843]
[1731299177391,0.66125885,81428.0,81427.0,0.000843]
[1731299178213,0.60628084,81428.0,81427.0,0.000843]
[1731299178485,0.63128084,81428.0,81427.0,0.000843]
[1731299178687,0.62928084,81428.0,81427.0,0.000843]
[1731299179815,0.63128084,81428.0,81427.0,0.000843]
[1731299180001,0.103266,81411.0,81410.0,0.18361314]
[1731299180208,0.3679981,81411.0,81410.0,0.18361314]
[1731299180664,0.3679981,81411.0,81404.0,0.0109533]
[1731299180665,0.103274,81405.0,81404.0,0.0109533]
[1731299180876,0.22921621,81405.0,81404.0,0.0109533]
[1731299181186,0.3680061,81405.0,81404.0,0.0109533]
[1731299185299,0.3730061,81405.0,81404.0,0.0109533]
[1731299186996,0.38369686,81405.0,81404.0,0.0109533]
[1731299187196,0.51129686,81405.0,81404.0,0.0109533]
[1731299187396,0.37250697,81405.0,81404.0,0.0109533]
[1731299187601,0.51129686,81405.0,81404.0,0.0109533]
[1731299188795,0.38369686,81405.0,81404.0,0.0109533]
[1731299195839,0.103278,81401.0,81384.0,0.125]
[1731299195986,0.22922021,81401.0,81384.0,0.125]
[1731299196817,0.22922021,81401.0,81388.0,0.18361314]
[1731299196818,0.098293,81389.0,81388.0,0.18361314]
[1731299197019,0.098304,81380.0,81372.0,0.03861628]
[1731299197215,0.196596,81385.0,81372.0,0.04947288]
[1731299197429,0.098305,81379.0,81372.0,0.0108566]
[1731299197636,0.18861314,81394.0,81371.0,0.00139]
[1731299197637,0.098302,81382.0,81371.0,0.00139]
[1731299198058,0.098302,81382.0,81371.0,0.198019]
[1731299198263,0.18361314,81383.0,81375.0,0.098309]
[1731299198438,0.098302,81382.0,81373.0,0.098312]
[1731299198644,0.18361314,81383.0,81371.0,0.01208979]
[1731299198843,0.38021414,81383.0,81371.0,0.01208979]
[1731299199050,0.098303,81381.0,81372.0,0.098313]
[1731299199278,0.24371314,81383.0,81372.0,0.196627]
[1731299199443,0.098303,81381.0,81372.0,0.098313]
[1731299199642,0.44031514,81383.0,81372.0,0.196627]